bitfinex/quotes_ETHUSD_20250106
["timestamp","ask_amount","ask_price","bid_price","bid_amount"]
[1736156189377,0.55,3645.0,3644.8,0.28657467]
[1736156189715,3.29349,3645.0,3644.8,0.28657467]
[1736156189872,3.29349,3645.0,3644.8,35.28657467]
[1736156190052,2.74355,3644.9,3644.8,0.28657467]
[1736156190874,3.710135,3644.9,3644.8,0.28657467]
[1736156191071,3.710135,3644.9,3644.4,35.0]
[1736156191278,2.74375,3644.7,3644.4,35.0]
[1736156194379,3.29359,3644.9,3644.4,35.0]
[1736156195242,3.41059,3644.9,3644.4,35.0]
[1736156196987,2.74385,3644.6,3643.6,1.19249427]
[1736156197215,2.74385,3644.6,3643.7,3.0]
[1736156197348,2.74385,3644.6,3643.8,1.8861957]
[1736156197683,2.74385,3644.6,3643.9,35.0]
[1736156197979,2.74385,3644.6,3643.9,35.04539284]
[1736156198284,2.74392,3644.5,3643.9,35.04539284]
[1736156199982,0.55,3644.6,3643.9,35.04539284]
[1736156200162,0.55,3644.6,3643.9,37.76296876]
[1736156204101,0.55,3644.6,3643.9,35.04539284]
[1736156204281,2.74387,3644.5,3643.9,35.04539284]
[1736156204687,2.74395,3644.4,3643.9,35.04539284]
[1736156204895,0.7665,3644.3,3643.9,35.04539284]
[1736156207395,2.74412,3644.2,3643.9,0.04539284]
[1736156207592,3.21443143,3644.2,3643.9,0.04539284]
[1736156207799,3.21443143,3644.2,3643.5,35.0]
[1736156208114,2.74412,3644.2,3644.0,0.03654299]
[1736156208398,2.74412,3644.2,3644.1,0.03644922]
[1736156208608,0.55,3644.0,3643.5,35.0]
[1736156208818,3.29424,3644.0,3643.5,35.0]
[1736156210724,3.29424,3644.0,3643.6,0.03691808]
[1736156211511,0.55,3644.0,3643.6,0.03691808]
[1736156211714,3.29412,3644.2,3643.6,0.03691808]
[1736156213424,3.29412,3644.2,3643.4,1.19249427]
[1736156213715,3.29412,3644.2,3643.7,35.0]
[1736156213939,3.29412,3644.2,3643.8,0.03697372]
[1736156214421,3.29412,3644.2,3643.9,0.03687995]
[1736156214614,4.1220806,3644.2,3643.7,35.0]
[1736156214794,4.1220806,3644.2,3644.0,0.03678619]
[1736156214999,4.1220806,3644.2,3643.7,35.0]
[1736156215199,4.1220806,3644.2,3644.1,0.03669242]
[1736156215515,4.9229806,3644.2,3643.7,35.0]
[1736156215715,4.9229806,3644.2,3644.1,0.03669242]
[1736156215881,4.9229806,3644.2,3643.7,35.0]
[1736156216587,4.9229806,3644.2,3643.8,0.03697372]
[1736156217019,4.9229806,3644.2,3643.7,35.0]
[1736156217322,4.9229806,3644.2,3643.9,0.03687995]
[1736156217487,4.9229806,3644.2,3643.8,0.03697372]
[1736156217682,4.9229806,3644.2,3644.0,0.03678619]
[1736156217889,4.9229806,3644.2,3643.9,0.03687995]
[1736156218198,4.9229806,3644.2,3644.0,0.03678619]
[1736156218547,0.55,3644.0,3643.7,35.0]
[1736156219502,0.55,3644.0,3643.2,1.19249427]
[1736156220087,0.55,3644.0,3643.3,35.0]
[1736156222228,2.74416,3644.1,3643.3,35.0]
[1736156225738,2.74416,3644.1,3643.4,0.03734886]
[1736156226439,2.74416,3644.1,3643.5,35.0]
[1736156226607,0.8009,3644.2,3643.5,35.03725507]
[1736156226809,1.14854368,3644.4,3644.0,1.19249427]
[1736156227108,1.14854368,3644.4,3644.2,1.19249427]
[1736156227310,1.14854368,3644.5,3644.3,2.74401]
[1736156227516,1.14854368,3644.5,3644.4,1.19249427]
[1736156227805,1.14854368,3644.5,3644.4,36.2332802]
[1736156228702,2.74334,3645.2,3644.4,36.2332802]
[1736156232205,2.74342,3645.1,3644.4,36.2332802]
[1736156233909,2.74342,3645.1,3644.4,1.2332802]
[1736156234207,3.27524637,3645.1,3644.4,1.2332802]
[1736156234547,3.27524637,3645.1,3644.5,35.0]
[1736156234844,2.74342,3645.1,3644.6,0.04057763]
[1736156236846,2.74342,3645.1,3644.7,0.04047348]
[1736156237144,2.74342,3645.1,3644.4,36.19249427]
[1736156237360,2.74342,3645.1,3644.8,0.04036934]
[1736156237505,2.74342,3645.1,3644.4,36.19249427]
[1736156237715,2.74342,3645.1,3644.5,0.04068178]
[1736156240252,2.74342,3645.1,3644.6,35.0]
[1736156240418,2.74342,3645.1,3644.6,35.04057763]
[1736156243022,1.14854368,3645.4,3644.8,1.19249427]
[1736156243421,1.14854368,3645.4,3644.8,1.23239361]
[1736156244034,1.14854368,3645.4,3644.9,35.0]
[1736156245049,2.74313,3645.5,3644.9,35.0]
[1736156245761,2.86004,3645.6,3644.9,35.0]
[1736156246845,2.74313,3645.5,3644.9,35.0]
[1736156247050,0.117,3645.6,3644.9,35.0]
[1736156247251,1.0168778,3645.6,3644.9,35.0]
[1736156247644,2.74318,3645.4,3644.9,35.0]
[1736156250361,2.74328,3645.3,3644.6,1.19249427]
[1736156250573,2.74328,3645.3,3644.7,0.04500392]
[1736156250875,2.74328,3645.3,3644.8,35.0]
[1736156251079,2.74328,3645.3,3644.8,35.04488676]
[1736156251080,1.19249427,3645.2,3644.8,35.04488676]
[1736156251378,3.57085,3644.9,3644.8,35.04488676]
[1736156252882,4.12085,3644.9,3644.8,0.04488676]
[1736156253245,2.74378,3644.6,3644.3,0.00135266]
[1736156253644,2.74378,3644.6,3644.4,0.04535543]
[1736156254385,2.74378,3644.6,3644.5,35.0]
[1736156254560,2.74378,3644.6,3644.5,35.04523825]
[1736156257589,2.74378,3644.6,3644.5,0.04523825]
[1736156257776,2.74378,3644.6,3644.1,0.28653251]
[1736156258087,0.55,3644.8,3644.2,35.04562942]
[1736156258287,0.117,3644.8,3644.2,37.76320534]
[1736156258655,0.11369894,3644.8,3644.2,37.76320534]
[1736156258856,0.8273,3644.9,3644.3,1.19249427]
[1736156259091,0.117,3645.0,3644.3,1.19249427]
[1736156259385,2.8605,3645.0,3644.4,0.04539505]
[1736156259564,2.8605,3645.0,3644.4,35.42685618]
[1736156259766,2.8605,3645.0,3644.5,0.04527788]
[1736156260178,2.8605,3645.0,3644.4,0.42685618]
[1736156260379,2.8605,3645.0,3644.6,35.0]
[1736156260564,2.8605,3645.0,3644.7,0.04504354]
[1736156262688,0.117,3645.0,3644.7,2.76261946]
[1736156263767,0.117,3645.0,3644.7,0.04504354]
[1736156263967,2.74343,3645.1,3644.8,35.0]
[1736156264178,2.74343,3645.1,3644.8,35.04492639]
[1736156265268,2.7435,3645.0,3644.8,35.04492639]
[1736156265470,2.7435,3645.0,3644.8,0.04492639]
[1736156265989,2.7435,3645.0,3644.5,35.0]
[1736156266155,2.7435,3645.0,3644.6,2.76273663]
[1736156266555,3.5311,3645.0,3644.6,0.04516071]
[1736156266792,3.5311,3645.0,3644.5,35.0]
[1736156267002,3.5311,3645.0,3644.6,0.04516071]
[1736156270402,3.5311,3645.0,3644.7,0.04504354]
[1736156270779,3.5311,3645.0,3644.6,35.0]
[1736156270978,3.5311,3645.0,3644.6,35.04494927]
[1736156273922,3.5311,3645.0,3644.6,0.04494927]
[1736156274218,3.5311,3645.0,3644.4,0.42685618]
[1736156274428,0.7876,3645.0,3644.6,0.04494927]
[1736156274712,0.7876,3645.0,3644.5,0.35058172]
[1736156274869,0.7876,3645.0,3644.6,0.04494927]
[1736156275618,0.7876,3645.0,3644.4,0.42685618]
[1736156275769,0.7876,3645.0,3644.6,0.04494927]
[1736156276142,0.7876,3645.0,3644.4,0.42685618]
[1736156276273,3.53109,3645.0,3644.6,0.04494927]
[1736156276474,3.53109,3645.0,3644.5,0.04506644]
[1736156276774,3.53109,3645.0,3644.3,1.42801233]
[1736156276775,3.53109,3645.0,3644.6,0.04494927]
[1736156276996,3.53109,3645.0,3644.3,1.42801233]
[1736156277225,3.53109,3645.0,3644.4,0.04518361]
[1736156277226,4.67963368,3645.0,3644.4,0.04518361]
[1736156278424,3.53109,3645.0,3644.4,0.04518361]
[1736156279596,4.67963368,3645.0,3644.4,0.04518361]
[1736156282175,1.29824168,3644.9,3644.4,0.04518361]
[1736156283329,4.67963368,3645.0,3644.4,0.04518361]
[1736156285045,4.79663368,3645.0,3644.4,0.04518361]
[1736156285854,4.79663368,3645.0,3644.2,1.71456433]
[1736156286059,4.79663368,3645.0,3644.5,0.04507963]
[1736156286354,2.74356,3644.9,3644.6,0.04496246]
[1736156286515,2.74356,3644.9,3644.2,1.71456433]
[1736156286721,4.04146643,3644.9,3644.3,0.99733935]
[1736156287715,2.74356,3644.9,3644.3,0.04531398]
[1736156289176,2.05314368,3645.0,3644.3,0.04531398]
[1736156289353,2.05314368,3645.0,3644.3,0.72989928]
[1736156290562,1.29773261,3644.9,3644.3,0.72989928]
[1736156291641,2.05314368,3645.0,3644.4,0.95220009]
[1736156291979,2.05314368,3645.0,3644.5,0.04507963]
[1736156292182,4.79663368,3645.0,3644.5,0.04507963]
[1736156292742,4.79663368,3645.0,3644.2,2.62829667]
[1736156293065,4.79663368,3645.0,3644.3,0.04531398]
[1736156293263,2.74356,3644.9,3644.3,0.04531398]
[1736156293978,5.19034634,3644.9,3644.3,0.99776139]
[1736156295081,1.29824266,3644.8,3644.4,2.38150053]
[1736156295444,1.29824266,3644.8,3644.5,0.04507963]
[1736156296978,1.29824266,3644.8,3644.5,0.38623826]
[1736156297188,1.29824266,3644.8,3644.6,0.04493608]
[1736156297887,2.44678634,3644.9,3644.6,2.42758416]
[1736156299302,2.44678634,3645.0,3644.7,0.95305923]
[1736156299973,2.44678634,3645.0,3644.8,1.19249427]
[1736156300175,2.44678634,3645.0,3644.9,3.23247435]
[1736156300598,1.14854368,3645.1,3645.0,2.74348]
[1736156300804,1.14854368,3645.1,3645.0,6.93597427]
[1736156302162,1.14854368,3646.1,3645.3,2.74324]
[1736156302428,1.14854368,3646.1,3645.4,1.46681827]
[1736156303203,1.14854368,3646.1,3645.8,1.19249427]
[1736156303765,0.24549804,3646.3,3646.0,1.19249427]
[1736156304499,0.24549804,3646.3,3646.0,3.93520427]
[1736156305111,0.24549804,3646.3,3646.0,2.74271]
[1736156305260,0.24549804,3646.3,3646.0,3.016981]
[1736156305459,0.24549804,3646.3,3646.0,0.274271]
[1736156307706,0.24549804,3646.3,3645.6,2.74301]
[1736156309282,0.24549804,3646.3,3645.4,7.44708522]
[1736156309483,0.24549804,3646.3,3645.5,2.74308]
[1736156309815,0.8221,3646.2,3645.5,2.74308]
[1736156310113,0.8221,3646.2,3645.4,4.70393522]
[1736156310272,0.8221,3646.2,3645.5,1.12394035]
[1736156312801,0.8221,3646.2,3645.4,5.74316]
[1736156313520,0.8221,3646.2,3645.3,2.74325]
[1736156313667,0.8221,3646.2,3645.6,35.0]
[1736156341645,0.7695,3646.0,3645.6,35.0]
[1736156341939,0.7695,3645.7,3645.2,1.15029003]
[1736156342522,0.7695,3645.7,3645.1,1.15029003]
[1736156342918,0.7695,3645.7,3645.2,35.0]
[1736156345359,0.7695,3645.7,3645.3,0.95062921]
[1736156346334,0.7695,3645.7,3645.4,0.95062921]
[1736156346760,0.7841,3645.5,3645.4,0.95062921]
[1736156347058,5.26981162,3645.5,3645.4,0.95062921]
[1736156347408,0.55,3645.4,3645.3,0.95062921]
[1736156347752,4.38115116,3645.4,3645.3,0.95062921]
[1736156348817,0.814,3645.3,3645.0,36.15029003]
[1736156349025,0.814,3645.3,3645.0,35.0]
[1736156352164,0.814,3645.3,3644.8,0.2865466]
[1736156352347,3.55982,3645.0,3644.8,0.2865466]
[1736156352658,3.55982,3645.0,3644.5,1.15029003]
[1736156352663,1.74261162,3644.9,3644.5,1.15029003]
[1736156352821,0.7554,3644.7,3644.5,1.15029003]
[1736156353365,0.7554,3644.7,3644.5,35.0]
[1736156356127,3.49912,3644.7,3644.5,35.0]
[1736156356331,2.74378,3644.6,3644.5,35.0]
[1736156356559,0.8253,3644.6,3644.5,35.0]
[1736156357273,0.8201,3644.1,3643.9,1.15029003]
[1736156357754,1.3701,3644.1,3644.0,35.0]
[1736156357960,4.11426,3644.1,3644.0,35.0]
[1736156358537,3.56441,3643.9,3643.8,0.28660833]
[1736156358763,3.56441,3643.9,3643.5,1.15029003]
[1736156358764,3.56449,3643.8,3643.5,1.15029003]
[1736156358934,3.56449,3643.8,3643.6,35.0]
[1736156359421,0.8201,3643.8,3643.6,35.0]
[1736156362681,0.8201,3643.8,3643.1,0.28664615]
[1736156362888,0.8201,3643.8,3643.2,0.56778996]
[1736156363062,0.8201,3643.8,3643.3,35.0]
[1736156368012,0.55,3643.7,3643.3,35.0]
[1736156372319,0.55,3643.7,3643.4,0.04507863]
[1736156372723,0.117,3644.1,3643.4,0.04507863]
[1736156372932,0.8272,3644.0,3643.5,35.0]
[1736156373224,0.55,3643.9,3643.5,35.04496139]
[1736156373428,0.55,3643.9,3643.5,37.78957139]
[1736156374109,0.55,3644.2,3643.5,37.78957139]
[1736156374403,0.55,3644.2,3643.6,2.71757592]
[1736156377840,0.55,3644.2,3643.4,2.74467]
[1736156378133,0.55,3644.2,3643.7,35.0]
[1736156385138,0.55,3644.0,3643.6,37.71757592]
[1736156385548,0.55,3644.0,3643.6,35.0]
[1736156385755,0.55,3644.0,3643.3,0.28666792]
[1736156385756,2.74431,3643.9,3643.3,0.28666792]
[1736156386061,0.55,3643.7,3643.3,0.28666792]
[1736156386370,0.55,3643.7,3643.4,35.03998767]
[1736156388571,0.55,3643.7,3643.4,36.23383257]
[1736156388726,0.8276,3644.2,3643.6,1.1938449]
[1736156389127,0.55,3644.1,3643.6,1.1938449]
[1736156389431,0.55,3644.1,3643.7,35.0]
[1736156396385,0.55,3644.1,3643.4,0.28666056]
[1736156396386,0.55,3644.0,3643.4,0.28666056]
[1736156396687,3.29412,3644.2,3643.4,0.33804299]
[1736156396688,0.55,3643.8,3643.4,0.33804299]
[1736156396847,0.55,3643.6,3643.4,0.33804299]
[1736156399087,1.3581,3643.5,3643.4,0.33804299]
[1736156401567,0.7586,3643.9,3643.4,0.33804299]
[1736156402085,0.55,3643.8,3643.4,1.05365942]
[1736156402271,0.55,3643.8,3643.5,35.0]
[1736156409619,0.55,3643.8,3643.5,35.04499445]
[1736156411384,0.7954,3643.8,3643.5,35.04499445]
[1736156411587,0.7954,3643.8,3643.5,0.04499445]
[1736156411784,3.53983,3643.8,3643.5,0.04499445]
[1736156411985,3.53983,3643.8,3643.3,1.15029003]
[1736156412293,3.53983,3643.8,3643.5,0.04499445]
[1736156413422,3.53983,3643.8,3643.4,1.42892774]
[1736156413621,3.53983,3643.8,3643.5,0.04499445]
[1736156414008,3.53983,3643.8,3643.2,36.15029003]
[1736156414300,3.53983,3643.8,3643.2,38.86786595]
[1736156414482,3.53983,3643.8,3643.3,0.04522894]
[1736156414885,3.53983,3643.8,3643.4,0.28666701]
[1736156415084,3.53983,3643.8,3643.4,0.3317787]
[1736156415962,3.53983,3643.8,3643.5,0.95254761]
[1736156416332,0.7954,3643.8,3643.5,0.99754206]
[1736156416857,0.7954,3643.8,3643.5,1.86665079]
[1736156417458,0.7954,3643.8,3643.5,0.04499445]
[1736156417651,0.7954,3643.8,3643.6,35.0]
[1736156418163,1.3674,3643.7,3643.6,35.0]
[1736156420033,4.11186,3643.7,3643.6,35.0]
[1736156420970,0.55,3643.6,3643.4,0.28666701]
[1736156421367,0.55,3643.6,3643.5,0.0450077]
[1736156421595,0.55,3643.6,3643.5,35.0]
[1736156421764,0.55,3643.6,3643.5,35.0450077]
[1736156424579,3.29453,3643.6,3643.5,35.0450077]
[1736156424873,3.84511737,3643.6,3643.5,35.0450077]
[1736156427689,3.29453,3643.6,3643.5,35.0450077]
[1736156434277,7.05203,3643.6,3643.5,35.0450077]
[1736156434595,8.24633253,3643.6,3643.5,0.0450077]
[1736156434795,0.55,3643.4,3643.1,1e-05]
[1736156435100,0.55,3643.2,3643.1,1e-05]
[1736156435340,0.54669777,3643.2,3643.1,1e-05]
[1736156435538,0.7575,3643.6,3643.1,1e-05]
[1736156435681,3.50205,3643.6,3643.1,0.0405454]
[1736156435880,2.74455,3643.6,3643.1,3.91188845]
[1736156436082,2.74455,3643.6,3643.2,0.04043117]
[1736156436481,1.26554368,3643.7,3643.2,0.04043117]
[1736156436927,1.14854368,3643.5,3643.2,0.04043117]
[1736156438384,0.55,3643.6,3643.2,0.04043117]
[1736156438641,0.55,3643.6,3643.2,0.9095399]
[1736156438940,0.55,3643.6,3643.2,0.04043117]
[1736156439085,0.55,3643.6,3643.3,35.0]
[1736156439485,0.55,3643.6,3643.4,0.04022272]
[1736156440085,0.55,3643.6,3643.5,35.0]
[1736156440338,0.55,3643.6,3643.5,35.04011851]
[1736156443220,0.2454,3643.8,3643.5,3.95199696]
[1736156443422,0.2454,3643.8,3643.7,1.19430253]
[1736156443804,0.2454,3643.8,3643.7,38.97867263]
[1736156445126,0.2454,3643.8,3643.7,41.31545993]
[1736156447234,0.2454,3643.8,3643.7,44.31545993]
[1736156449012,0.2454,3643.8,3643.7,47.36560508]
[1736156449437,0.2454,3643.8,3643.7,47.32569498]
[1736156450347,0.2454,3643.8,3643.7,45.02785097]
[1736156450502,0.2454,3643.8,3643.7,47.74542689]
[1736156451608,0.2454,3643.8,3643.7,49.46973213]
[1736156454435,0.2454,3643.8,3643.7,45.84283572]
[1736156455582,0.2454,3643.8,3643.7,46.99153331]
[1736156459773,0.2454,3643.8,3643.7,45.84283572]
[1736156461278,0.2454,3643.8,3643.7,49.46547469]
[1736156461995,0.7724,3645.2,3644.4,2.74389]
[1736156462291,0.7724,3645.2,3644.5,0.53887639]
[1736156462499,0.7724,3645.2,3644.5,2.74383]
[1736156462675,0.7724,3645.2,3644.6,35.0]
[1736156464401,0.7878,3645.1,3644.6,35.0]
[1736156464600,0.7878,3644.9,3644.6,35.0]
[1736156467705,0.7878,3644.9,3644.1,2.74412]
[1736156468200,0.7878,3644.9,3644.2,35.0]
[1736156468399,0.55,3644.8,3644.2,35.0]
[1736156468612,0.8242,3644.7,3644.2,35.0]
[1736156469304,0.55,3644.6,3644.2,35.0]
[1736156469806,0.55,3644.4,3644.2,35.0]
[1736156470002,1.3073,3644.3,3644.2,35.0]
[1736156473396,0.55,3644.2,3643.7,0.28660791]
[1736156474103,0.55,3644.2,3643.8,35.0]
[1736156474717,0.8174,3644.1,3643.8,35.0]
[1736156476798,0.8174,3644.3,3643.8,35.0]
[1736156476994,0.117,3644.9,3644.0,2.74422]
[1736156477198,1.3016,3644.8,3644.0,2.74422]
[1736156477615,3.29363,3644.8,3644.3,35.0]
[1736156477902,0.55,3644.6,3644.3,35.0]
[1736156481241,0.55,3644.6,3643.9,0.2866264]
[1736156481620,0.55,3644.6,3644.0,35.0]
[1736156483362,0.55,3644.6,3644.1,2.71757592]
[1736156483869,0.55,3644.6,3644.0,2.74421]
[1736156484141,0.55,3644.6,3644.2,35.0]
[1736156487223,0.55,3644.4,3643.9,0.2866264]
[1736156487622,0.55,3644.4,3644.0,35.0]
[1736156488550,0.7902,3644.5,3644.0,35.0]
[1736156490149,1.3402,3644.2,3644.0,35.0]
[1736156490445,0.7902,3644.1,3644.0,35.0]
[1736156491022,1.3402,3644.1,3644.0,35.0]
[1736156491455,4.08483,3644.0,3643.9,0.2866264]
[1736156491656,0.55,3643.6,3643.5,1.14731291]
[1736156491816,4.08513,3643.6,3643.5,1.14731291]
[1736156492616,4.08513,3643.6,3643.4,35.0]
[1736156495243,1.3406,3643.6,3643.4,35.0]
[1736156495449,3.29461,3643.5,3643.4,35.0]
[1736156495835,1.3362,3643.3,3643.2,0.28666486]
[1736156496039,4.08096,3643.3,3643.2,0.28666486]
[1736156496423,4.09896,3643.3,3643.2,0.28666486]
[1736156497277,4.09903,3643.2,3643.1,1e-05]
[1736156497436,5.04795428,3643.2,3643.1,1e-05]
[1736156501528,10.53775428,3643.2,3643.1,1e-05]
[1736156501729,9.58883,3643.2,3643.1,1e-05]
[1736156509288,6.961,3643.2,3643.1,1e-05]
[1736156509984,6.1568,3643.2,3643.1,1e-05]
[1736156510484,6.1568,3643.2,3643.1,0.03678138]
[1736156510698,6.0398,3643.2,3643.1,0.03678138]
[1736156514271,5.4898,3643.2,3643.1,0.03678138]
[1736156514774,5.4898,3643.2,3643.1,1e-05]
[1736156515274,5.4898,3643.2,3643.1,0.31520949]
[1736156515479,5.4898,3643.2,3643.1,0.274517]
[1736156515658,5.4898,3643.2,3643.1,0.31520949]
[1736156515873,5.4898,3643.2,3643.1,0.04070249]
[1736156521165,5.4898,3643.2,3643.1,35.04070249]
[1736156522567,5.4898,3643.2,3643.1,0.04070249]
[1736156523078,5.4898,3643.2,3643.1,35.04070249]
[1736156524384,5.4898,3643.2,3643.1,37.78561249]
[1736156524538,5.4898,3643.2,3643.1,40.50318841]
[1736156526399,5.4898,3643.2,3643.1,37.75827841]
[1736156528162,5.4898,3643.2,3643.1,0.04070249]
[1736156535887,5.4898,3643.2,3643.1,35.04070249]
[1736156541080,5.4898,3643.2,3643.1,0.04070249]
[1736156541717,5.4898,3643.2,3643.1,1e-05]
[1736156542011,5.4898,3643.2,3643.1,0.04046737]
[1736156542212,5.4898,3643.2,3643.1,1e-05]
[1736156542400,5.4898,3643.2,3643.1,0.04046737]
[1736156542603,5.4898,3643.2,3643.1,1e-05]
[1736156542804,5.4898,3643.2,3643.1,0.04046737]
[1736156543008,5.4898,3643.2,3643.1,1e-05]
[1736156543211,5.4898,3643.2,3643.1,0.04046737]
[1736156543394,5.4898,3643.2,3643.1,1e-05]
[1736156543589,5.4898,3643.2,3643.1,0.04046737]
[1736156543795,5.4898,3643.2,3643.1,1e-05]
[1736156543997,5.4898,3643.2,3643.1,0.04046737]
[1736156551816,7.06964037,3643.2,3643.1,0.04046737]
[1736156552018,11.83199564,3643.2,3643.1,0.04046737]
[1736156552247,11.83199564,3643.2,3643.1,1e-05]
[1736156552413,10.63757037,3643.2,3643.1,1e-05]
[1736156553815,10.63757037,3643.2,3643.1,0.04049087]
[1736156558323,11.78715005,3643.2,3643.1,0.04049087]
[1736156559231,11.78715005,3643.2,3643.1,1e-05]
[1736156559835,11.78715005,3643.2,3643.1,0.03655389]
[1736156562054,11.78715005,3643.2,3643.1,1e-05]
[1736156562433,11.78715005,3643.2,3643.1,0.03673904]
[1736156564084,11.78715005,3643.2,3643.1,1e-05]
[1736156566844,11.90415005,3643.2,3643.1,1e-05]
[1736156570639,10.75730968,3643.2,3643.1,1e-05]
[1736156571129,7.30637968,3643.2,3643.1,1e-05]
[1736156571494,7.18937968,3643.2,3643.1,1e-05]
[1736156571694,7.30637968,3643.2,3643.1,0.03678139]
[1736156571905,7.30637968,3643.2,3643.1,1e-05]
[1736156572129,7.30637968,3643.2,3643.1,0.03678139]
[1736156572314,6.1568,3643.2,3643.1,1e-05]
[1736156572617,6.1568,3643.2,3643.1,0.03678139]
[1736156572818,6.1568,3643.2,3643.1,1e-05]
[1736156573021,6.1568,3643.2,3643.1,0.03678139]
[1736156573185,7.30637968,3643.2,3643.1,1e-05]
[1736156573383,7.30637968,3643.2,3643.1,0.03678139]
[1736156573605,7.30637968,3643.2,3643.1,1e-05]
[1736156573807,10.05120968,3643.2,3643.1,0.03678139]
[1736156574013,10.05120968,3643.2,3643.1,1e-05]
[1736156574214,10.05120968,3643.2,3643.1,0.03678139]
[1736156574427,10.05120968,3643.2,3643.1,1e-05]
[1736156575220,8.90163,3643.2,3643.1,0.03678139]
[1736156575385,8.90163,3643.2,3643.1,1e-05]
[1736156575587,8.90163,3643.2,3643.1,0.03678139]
[1736156575795,8.90163,3643.2,3643.1,1e-05]
[1736156576138,6.1568,3643.2,3643.1,1e-05]
[1736156576288,6.1568,3643.2,3643.1,0.03678139]
[1736156577630,7.30637968,3643.2,3643.1,0.03678139]
[1736156577927,7.18937968,3643.2,3643.1,0.03678139]
[1736156578139,7.30637968,3643.2,3643.1,0.03678139]
[1736156580037,6.1568,3643.2,3643.1,0.03678139]
[1736156580872,6.9548,3643.2,3643.1,0.03678139]
[1736156581068,10.89426003,3643.2,3643.1,1e-05]
[1736156581438,9.69963,3643.2,3643.1,1e-05]
[1736156582562,5.6068,3643.2,3643.1,1e-05]
[1736156582763,5.4898,3643.2,3643.1,1e-05]
[1736156582964,5.4898,3643.2,3643.1,0.03674434]
[1736156583166,5.4898,3643.2,3643.1,1e-05]
[1736156583352,5.4898,3643.2,3643.1,0.03674434]
[1736156583556,5.4898,3643.2,3643.1,1e-05]
[1736156583750,5.4898,3643.2,3643.1,0.03674434]
[1736156583955,5.4898,3643.2,3643.1,1e-05]
[1736156584158,5.4898,3643.2,3643.1,0.03674434]
[1736156584353,5.4898,3643.2,3643.1,1e-05]
[1736156584556,5.4898,3643.2,3643.1,0.03674434]
[1736156584771,5.4898,3643.2,3643.1,1e-05]
[1736156585071,5.4898,3643.2,3643.1,0.03674434]
[1736156585272,5.4898,3643.2,3643.1,1e-05]
[1736156585660,6.8367,3643.2,3643.1,0.03668614]
[1736156586082,6.8367,3643.2,3643.1,1e-05]
[1736156586272,7.98627968,3643.2,3643.1,1e-05]
[1736156586649,7.98627968,3643.2,3643.1,0.03671789]
[1736156586850,7.98627968,3643.2,3643.1,1e-05]
[1736156587055,7.98627968,3643.2,3643.1,0.03673905]
[1736156587251,7.18937968,3643.2,3643.1,1e-05]
[1736156587458,6.0398,3643.2,3643.1,0.03673905]
[1736156589063,8.78463,3643.2,3643.1,0.03673905]
[1736156589592,9.59023,3643.2,3643.1,0.03673905]
[1736156590316,10.74134895,3643.2,3643.1,0.03673905]
[1736156590676,10.74134895,3643.2,3643.1,1e-05]
[1736156591278,10.74134895,3643.2,3643.1,0.03674434]
[1736156591566,9.59023,3643.2,3643.1,0.03674434]
[1736156592013,6.0398,3643.2,3643.1,0.03674434]
[1736156592305,5.4898,3643.2,3643.1,0.03674434]
[1736156592963,5.4898,3643.2,3643.1,3.97628437]
[1736156593179,5.4898,3643.2,3643.1,4.3766576]
[1736156593411,5.4898,3643.2,3643.1,39.3766576]
[1736156594391,5.4898,3643.2,3643.1,41.75864897]
[1736156595108,5.4898,3643.2,3643.1,37.81910894]
[1736156595678,5.4898,3643.2,3643.1,46.21001886]
[1736156595911,5.4898,3643.2,3643.1,46.76001886]
[1736156597352,1.1510817,3643.9,3643.8,2.74438]
[1736156597501,1.2670817,3644.8,3643.9,3.29431]
[1736156597839,1.2670817,3644.8,3644.2,0.55]
[1736156598045,1.2670817,3644.8,3644.4,0.55]
[1736156598545,0.116,3644.8,3644.3,0.55]
[1736156598841,0.116,3644.8,3644.6,0.55]
[1736156599332,0.116,3644.8,3644.3,0.55]
[1736156599543,0.8016,3645.1,3644.3,0.55]
[1736156599856,0.116,3645.0,3644.5,0.55]
[1736156600220,0.116,3645.0,3644.3,0.55]
[1736156600751,0.116,3645.0,3644.5,0.55]
[1736156601045,0.116,3645.0,3644.7,0.55]
[1736156602245,0.9176,3645.1,3644.7,0.55]
[1736156604480,0.9176,3645.1,3644.3,0.55]
[1736156606413,3.66101,3645.1,3644.1,0.55]
[1736156606560,3.66101,3645.1,3644.3,0.55]
[1736156609888,3.66101,3645.1,3644.1,0.55]
[1736156610181,0.9176,3645.1,3644.4,0.55]
[1736156610506,2.74363,3644.8,3644.4,0.55]
[1736156611044,0.773,3644.7,3644.4,0.55]
[1736156611784,0.76969632,3644.7,3644.4,0.55]
[1736156612121,0.76969632,3644.7,3644.3,35.0]
[1736156612122,2.74393,3644.4,3644.3,35.0]
[1736156612421,3.018323,3644.4,3643.2,0.28660872]
[1736156612627,2.74431,3643.9,3643.2,0.28660872]
[1736156612812,2.74431,3643.9,3643.3,35.74827861]
[1736156612984,2.74431,3643.9,3643.4,0.55]
[1736156613226,2.74431,3643.9,3643.3,0.74827861]
[1736156613539,2.74431,3643.9,3643.4,0.55]
[1736156613737,2.74431,3643.9,3643.6,3.55]
[1736156614586,2.74418,3644.1,3643.6,3.55]
[1736156614917,0.8289,3644.0,3643.6,3.55]
[1736156616635,0.8289,3644.0,3643.4,0.55]
[1736156617220,0.8289,3644.0,3643.6,3.55]
[1736156617587,0.8214,3643.9,3643.5,35.0]
[1736156617788,0.357308,3644.0,3643.5,35.0]
[1736156617990,3.56593,3643.6,3643.5,35.0]
[1736156618935,2.74465,3643.5,3643.1,1e-05]
[1736156619098,0.7864,3643.4,3643.1,1e-05]
[1736156619434,0.7864,3643.4,3643.2,0.04002995]
[1736156621532,0.8007,3643.7,3643.3,0.55]